fUSD/lending_fUSD_20240629
["ID","MTS","AMOUNT","RATE_DAILY","PERIOD"]
[330638029,1719679837892,-1602.46,0.00013892,3]
[330638031,1719679837903,-500.0,0.00013892,3]
[330638032,1719679837912,-1443.19,0.00013892,3]
[330638033,1719679837921,-600.37,0.00013892,3]
[330638034,1719679837932,-1060.38,0.00013892,3]
[330638036,1719679837941,-500.0,0.00013892,3]
[330638037,1719679837951,-500.0,0.00013892,3]
[330638038,1719679837960,-604.23,0.00013892,3]
[330638039,1719679837970,-500.0,0.00013892,3]
[330638040,1719679837979,-500.0,0.00013892,3]
[330638041,1719679837989,-500.0,0.00013892,3]
[330638042,1719679837998,-500.0,0.00013892,3]
[330638043,1719679838008,-1814.49,0.00013892,3]
[330638044,1719679838018,-537.72,0.00013892,3]
[330638045,1719679838028,-919.25,0.00013892,3]
[330638046,1719679838037,-500.0,0.00013892,3]
[330638047,1719679838047,-1246.14,0.00013892,3]
[330638048,1719679838056,-500.0,0.00013892,3]
[330638049,1719679838065,-500.0,0.00013892,3]
[330638050,1719679838075,-500.0,0.00013892,3]
[330638051,1719679838084,-500.0,0.00013892,3]
[330638052,1719679838093,-500.0,0.00013892,3]
[330638053,1719679838102,-500.0,0.00013892,3]
[330638054,1719679838112,-6005.42,0.00013892,3]
[330638055,1719679838121,-500.0,0.00013892,3]
[330638056,1719679838131,-500.0,0.00013892,3]
[330638057,1719679838140,-500.0,0.00013892,3]
[330638058,1719679838150,-500.0,0.00013892,3]
[330638059,1719679838159,-598.56,0.00013892,3]
[330638060,1719679838168,-500.0,0.00013892,3]
[330638061,1719679838177,-500.0,0.00013892,3]
[330638062,1719679838187,-500.0,0.00013892,3]
[330638063,1719679838196,-500.0,0.00013892,3]
[330638064,1719679838206,-500.0,0.00013892,3]
[330638065,1719679838216,-500.0,0.00013892,3]
[330638066,1719679838226,-3805.0,0.00013892,3]
[330638067,1719679838235,-500.0,0.00013892,3]
[330638068,1719679838244,-500.0,0.00013892,3]
[330638069,1719679838254,-500.0,0.00013892,3]
[330638070,1719679838263,-1508.03,0.00013892,3]
[330638071,1719679838273,-824.78,0.00013892,3]
[330638072,1719679838282,-515.12,0.00013892,3]
[330638073,1719679838291,-500.0,0.00013892,3]
[330638074,1719679838301,-3366.14,0.00013892,3]
[330638075,1719679838311,-500.0,0.00013892,3]
[330638076,1719679838320,-827.58,0.00013892,3]
[330638077,1719679838329,-500.0,0.00013892,3]
[330638078,1719679838339,-500.0,0.00013892,3]
[330638079,1719679838348,-500.0,0.00013892,3]
[330638080,1719679838358,-500.0,0.00013892,3]
[330638081,1719679838367,-231.484375,0.00013892,3]
[330638082,1719679838377,-500.0,0.00013892,3]
[330638083,1719679838387,-689.09,0.00013892,3]
[330638084,1719679838396,-501.32,0.00013892,3]
[330638085,1719679838406,-1003.06,0.00013892,3]
[330638086,1719679838415,-500.0,0.00013892,3]
[330638087,1719679838424,-560.85455962,0.00013892,3]
[330638088,1719679838434,-4010.17,0.00013892,3]
[330638089,1719679838445,-1207.25,0.00013892,3]
[330638090,1719679838454,-602.78,0.00013892,3]
[330638091,1719679838463,-500.0,0.00013892,3]
[330638092,1719679838476,-500.0,0.00013892,3]
[330638093,1719679838485,-500.0,0.00013892,3]
[330638094,1719679838495,-500.0,0.00013892,3]
[330638095,1719679838504,-500.0,0.00013892,3]
[330638096,1719679838513,-1622.32,0.00013892,3]
[330638097,1719679838523,-1614.83,0.00013892,3]
[330638098,1719679838532,-635.32,0.00013892,3]
[330638099,1719679838541,-1275.44,0.00013892,3]
[330638100,1719679838551,-1220.3129608,0.00013892,3]
[330638101,1719679838585,-648.8570392,0.00013892,3]
[330638102,1719679838594,-1818.41,0.00013892,3]
[330638103,1719679838604,-1173.47,0.00013893,3]
[330638104,1719679838613,-2487.24,0.00013893,3]
[330638105,1719679838623,-1993.8,0.00013893,3]
[330638106,1719679838632,-1322.4,0.00013893,3]
[330638107,1719679838641,-500.0,0.00013893,3]
[330638108,1719679838651,-1243.99,0.00013893,3]
[330638109,1719679838660,-3474.12,0.00013893,3]
[330638110,1719679838670,-1858.03,0.00013893,3]
[330638111,1719679838680,-1033.0,0.00013893,3]
[330638112,1719679838690,-1742.6,0.00013893,3]
[330638113,1719679838702,-2066.39,0.00013893,3]
[330638114,1719679838711,-3048.0,0.00013893,3]
[330638115,1719679838720,-2607.83,0.00013893,3]
[330638116,1719679838730,-2981.87,0.00013893,3]
[330638117,1719679838741,-682.14,0.00013893,3]
[330638118,1719679838751,-20000.0,0.00013893,2]
[330638119,1719679838761,-1581.8,0.00013893,3]
[330638120,1719679838770,-1999.24,0.00013893,3]
[330638121,1719679838780,-2201.39,0.00013893,3]
[330638122,1719679838789,-3451.23,0.00013893,3]
[330638123,1719679838798,-1869.93,0.00013893,3]
[330638124,1719679838808,-745.72,0.00013893,3]
[330638125,1719679838818,-500.0,0.00013893,3]
[330638126,1719679838827,-500.0,0.00013893,3]
[330638127,1719679838837,-500.0,0.00013893,3]
[330638128,1719679838847,-1458.57,0.00013893,3]
[330638129,1719679838861,-500.0,0.00013893,3]
[330638130,1719679838871,-511.62318401,0.00013893,3]
[330638131,1719679838880,-1435.96,0.00013893,3]
[330638132,1719679838891,-3286.44,0.00013893,3]
[330638133,1719679838901,-500.0,0.00013893,3]
[330638134,1719679838910,-2599.59,0.00013893,3]
[330638135,1719679838920,-544.06,0.00013893,3]
[330638136,1719679838934,-1300.14,0.00013893,3]
[330638137,1719679838945,-2757.83,0.00013893,3]
[330638138,1719679838955,-500.0,0.00013893,3]
[330638139,1719679838964,-3263.92,0.00013893,3]
[330638140,1719679838974,-3343.75,0.00013893,3]
[330638141,1719679838984,-500.0,0.00013893,3]
[330638142,1719679838993,-650.93,0.00013893,3]
[330638143,1719679839003,-1343.14,0.00013893,3]
[330638144,1719679839013,-2221.62162827,0.00013893,3]
[330638145,1719679839027,-1096.43837173,0.00013893,3]
[330638146,1719679839038,-1682.06,0.00013893,3]
[330638147,1719679839048,-566.31,0.00013893,3]
[330638148,1719679839058,-500.0,0.00013893,3]
[330638149,1719679839068,-568.01732634,0.00013893,3]
[330638150,1719679839080,-325.16500787,0.00013893,3]
[330638151,1719679840287,-385.66261705,0.00013893,3]
[330638152,1719679840496,-1694.81504874,0.00013893,3]
[330638153,1719679840506,-500.0,0.00013893,3]
[330638154,1719679840515,-2534.67,0.00013893,3]
[330638155,1719679840525,-3476.02,0.00013893,3]
[330638156,1719679840534,-500.0,0.00013893,3]
[330638157,1719679840543,-760.1,0.00013893,3]
[330638158,1719679840552,-496.97748013,0.00013893,3]
[330638159,1719679840562,-500.0,0.00013893,3]
[330638160,1719679840571,-2220.11,0.00013893,3]
[330638161,1719679840581,-500.0,0.00013893,3]
[330638162,1719679840590,-4278.34,0.00013893,3]
[330638163,1719679840599,-1435.1,0.00013893,3]
[330638164,1719679840608,-500.0,0.00013893,3]
[330638165,1719679840619,-1406.69,0.00013893,2]
[330638166,1719679840628,-1714.5,0.00013893,3]
[330638167,1719679840638,-814.44,0.00013893,3]
[330638168,1719679840647,-1846.89,0.00013893,3]
[330638169,1719679840656,-645.92,0.00013893,3]
[330638170,1719679840666,-1759.37,0.00013893,3]
[330638171,1719679840675,-10050.08,0.00013893,3]
[330638172,1719679840685,-3053.88,0.00013893,3]
[330638173,1719679840695,-1372.24,0.00013893,3]
[330638174,1719679840704,-2590.87894159,0.00013893,3]
[330638175,1719679840759,-2104.95528677,0.00013893,3]
[330638176,1719679841339,-664.23950995,0.00013893,3]
[330638177,1719679841352,-21.27626169,0.00013893,3]
[330638178,1719679841362,-354.46873831,0.00013893,3]
[330638179,1719679841375,-145.53126169,0.00013893,3]
[330638180,1719679841385,-500.0,0.00013893,3]
[330638181,1719679841395,-500.0,0.00013893,3]
[330638182,1719679841404,-606.81,0.00013893,3]
[330638183,1719679841415,-1192.72,0.00013893,3]
[330638184,1719679841424,-500.0,0.00013893,3]
[330638185,1719679841434,-500.0,0.00013893,3]
[330638186,1719679841445,-1233.78,0.00013893,3]
[330638187,1719679841454,-1608.45598395,0.00013893,3]
[330638188,1719679841466,-301.21,0.00013893,3]
[330638189,1719679841478,-1861.97277575,0.00013893,3]
[330638226,1719679842719,-4534.0012403,0.00013893,3]
[330638227,1719679842729,-5219.11,0.00013893,3]
[330638228,1719679842742,-2578.65,0.00013893,3]
[330638229,1719679842752,-2133.22,0.00013893,3]
[330638230,1719679842762,-6384.07,0.00013893,3]
[330638231,1719679842772,-2884.02,0.00013893,3]
[330638232,1719679842781,-15652.24,0.00013893,3]
[330638233,1719679842792,-1710.11,0.00013893,3]
[330638234,1719679842802,-2504.39,0.00013893,3]
[330638235,1719679842811,-29116.5,0.00013893,3]
[330638236,1719679842821,-500.0,0.00013893,3]
[330638237,1719679842830,-2740.76,0.00013893,3]
[330638238,1719679842840,-3467.06,0.00013893,3]
[330638239,1719679842852,-2893.41,0.00013893,3]
[330638240,1719679842862,-3858.47,0.00013893,3]
[330638241,1719679842872,-500.0,0.00013893,3]
[330638242,1719679842882,-1364.98,0.00013893,3]
[330638243,1719679842892,-1581.55,0.00013893,3]
[330638244,1719679842902,-2041.72,0.00013893,3]
[330638245,1719679842912,-1076.68,0.00013893,3]
[330638246,1719679842921,-4431.06,0.00013893,3]
[330638247,1719679842933,-3037.42,0.00013893,3]
[330638248,1719679842943,-500.0,0.00013893,3]
[330638249,1719679842953,-4083.16,0.00013893,3]
[330638250,1719679842963,-8393.9,0.00013893,3]
[330638251,1719679842971,-1306.37,0.00013893,3]
[330638252,1719679842981,-1418.22,0.00013893,3]
[330638253,1719679842993,-1792.77,0.00013893,3]
[330638254,1719679843004,-2712.48,0.00013893,3]
[330638255,1719679843013,-1701.65,0.00013893,3]
[330638256,1719679843023,-7062.64,0.00013893,3]
[330638257,1719679843033,-3405.77,0.00013893,3]
[330638258,1719679843044,-1299.09,0.00013893,3]
[330638259,1719679843055,-1715.1,0.00013893,3]
[330638260,1719679843067,-7129.35,0.00013893,3]
[330638261,1719679843081,-60886.24,0.00013893,3]
[330638262,1719679843091,-500.0,0.00013893,3]
[330638263,1719679843102,-3950.55,0.00013893,3]
[330638264,1719679843240,-3102.28,0.00013893,3]
[330638265,1719679843250,-690.15,0.00013893,3]
[330638266,1719679843260,-2501.63,0.00013893,3]
[330638267,1719679843270,-4244.68,0.00013893,3]
[330638268,1719679843279,-6589.33,0.00013893,3]
[330638269,1719679843288,-862.78,0.00013893,3]
[330638270,1719679843298,-3452.8,0.00013893,3]
[330638271,1719679843307,-500.0,0.00013893,3]
[330638272,1719679843317,-797.64,0.00013893,3]
[330638273,1719679843327,-2904.0,0.00013893,3]
[330638274,1719679843337,-2196.53,0.00013893,3]
[330638275,1719679843346,-1406.69,0.00013894,2]
[330638276,1719679843356,-8367.16,0.00013894,3]
[330638277,1719679843366,-500.0,0.00013894,3]
[330638278,1719679843375,-2002.57,0.00013894,3]
[330638279,1719679843385,-2986.1,0.00013894,3]
[330638280,1719679843395,-8641.41,0.00013894,3]
[330638281,1719679843404,-3975.98,0.00013894,3]
[330638282,1719679843414,-2204.15,0.00013894,3]
[330638283,1719679843423,-1005.07,0.00013894,3]
[330638284,1719679843434,-5027.43,0.00013894,3]
[330638285,1719679843445,-500.0,0.00013895,3]
[330638286,1719679843455,-1931.44,0.00013895,3]
[330638287,1719679843464,-597.99,0.00013895,3]
[330638288,1719679843474,-500.0,0.00013895,3]
[330638289,1719679843483,-565.18,0.00013895,3]
[330638290,1719679843493,-500.0,0.00013895,3]
[330638291,1719679843503,-569.8,0.00013895,3]
[330638292,1719679843513,-500.0,0.00013895,3]
[330638293,1719679843522,-2195.44,0.00013895,3]
[330638294,1719679843532,-500.0,0.00013895,3]
[330638295,1719679843541,-767.5,0.00013895,3]
[330638296,1719679843550,-500.0,0.00013895,3]
[330638297,1719679843560,-841.08,0.00013895,3]
[330638298,1719679843569,-500.0,0.00013895,3]
[330638299,1719679843578,-500.0,0.00013895,3]
[330638300,1719679843588,-644.65,0.00013895,3]
[330638301,1719679843598,-500.0,0.00013895,3]
[330638302,1719679843607,-1031.56,0.00013895,3]
[330638303,1719679843616,-1769.16,0.00013895,3]
[330638304,1719679843626,-500.0,0.00013895,3]
[330638305,1719679843647,-500.0,0.00013895,3]
[330638306,1719679843658,-560.4,0.00013895,3]
[330638307,1719679843667,-500.0,0.00013895,3]
[330638308,1719679843677,-500.0,0.00013895,3]
[330638309,1719679843686,-500.0,0.00013895,3]
[330638310,1719679843696,-1249.98,0.00013895,3]
[330638311,1719679843705,-500.0,0.00013895,3]
[330638312,1719679843715,-608.71,0.00013895,3]
[330638313,1719679843725,-815.78,0.00013895,3]
[330638314,1719679843738,-500.0,0.00013895,3]
[330638315,1719679843749,-742.18,0.00013895,3]
[330638316,1719679843759,-867.28,0.00013895,3]
[330638317,1719679843770,-500.0,0.00013895,3]
[330638318,1719679843779,-707.06,0.00013895,3]
[330638319,1719679843789,-500.0,0.00013895,3]
[330638320,1719679843799,-500.0,0.00013895,3]
[330638321,1719679843809,-1897.42,0.00013895,3]
[330638322,1719679843819,-500.0,0.00013895,3]
[330638323,1719679843828,-813.47,0.00013895,3]
[330638324,1719679843838,-500.0,0.00013895,3]
[330638325,1719679843849,-500.0,0.00013895,3]
[330638326,1719679843864,-1722.71,0.00013895,3]
[330638327,1719679843874,-1789.96,0.00013895,3]
[330638328,1719679843885,-780.39,0.00013895,3]
[330638329,1719679843899,-611.05,0.00013895,3]
[330638330,1719679843910,-500.0,0.00013895,3]
[330638331,1719679843921,-500.0,0.00013895,3]
[330638332,1719679843933,-580.91,0.00013895,3]
[330638333,1719679843950,-501.23269882,0.00013895,3]
[330638334,1719679843961,-500.0,0.00013895,3]
[330638335,1719679843973,-799.22,0.00013895,3]
[330638336,1719679843983,-500.0,0.00013895,3]
[330638337,1719679843993,-609.4,0.00013895,3]
[330638338,1719679844002,-793.6,0.00013895,3]
[330638339,1719679844012,-500.0,0.00013895,3]
[330638340,1719679844021,-500.0,0.00013895,3]
[330638341,1719679844031,-500.0,0.00013895,3]
[330638342,1719679844042,-822.8,0.00013895,3]
[330638343,1719679844053,-953.3,0.00013895,3]
[330638344,1719679844063,-500.0,0.00013895,3]
[330638345,1719679844072,-834.08,0.00013895,3]
[330638346,1719679844082,-500.0,0.00013895,3]
[330638347,1719679844092,-1650.53,0.00013895,3]
[330638348,1719679844102,-500.0,0.00013895,3]
[330638349,1719679844111,-500.0,0.00013895,3]
[330638350,1719679844121,-527.94,0.00013895,3]
[330638351,1719679844131,-500.0,0.00013895,3]
[330638352,1719679844140,-500.0,0.00013895,3]
[330638353,1719679844151,-500.0,0.00013895,3]
[330638354,1719679844161,-500.0,0.00013895,3]
[330638355,1719679844171,-1240.92,0.00013895,3]
[330638356,1719679844181,-781.66,0.00013895,3]
[330638357,1719679844191,-500.0,0.00013895,3]
[330638358,1719679844203,-772.86,0.00013895,3]
[330638359,1719679844212,-500.0,0.00013895,3]
[330638360,1719679844222,-500.0,0.00013895,3]
[330638361,1719679844232,-1433.48,0.00013895,3]
[330638362,1719679844242,-500.0,0.00013895,3]
[330638363,1719679844253,-500.0,0.00013895,3]
[330638364,1719679844264,-500.0,0.00013895,3]
[330638365,1719679844274,-554.77,0.00013895,3]
[330638366,1719679844284,-1364.68,0.00013895,3]
[330638367,1719679844295,-813.08,0.00013895,3]
[330638368,1719679844304,-500.0,0.00013895,3]
[330638369,1719679844314,-500.0,0.00013895,3]
[330638370,1719679844324,-573.41,0.00013895,3]
[330638371,1719679844334,-500.0,0.00013895,3]
[330638372,1719679844343,-1889.41,0.00013895,3]
[330638373,1719679844353,-1396.44,0.00013895,3]
[330638374,1719679844362,-642.47,0.00013895,3]
[330638375,1719679844372,-736.67,0.00013895,3]
[330638376,1719679844382,-1569.75,0.00013895,3]
[330638377,1719679844392,-1964.76,0.00013895,3]
[330638378,1719679844402,-500.0,0.00013895,3]
[330638379,1719679844412,-766.24,0.00013895,3]
[330638380,1719679844422,-500.0,0.00013895,3]
[330638381,1719679844431,-2021.47,0.00013895,3]
[330638382,1719679844440,-500.0,0.00013895,3]
[330638383,1719679844451,-500.0,0.00013895,3]
[330638384,1719679844461,-685.17,0.00013895,3]
[330638385,1719679844470,-1409.75,0.00013895,3]
[330638386,1719679844479,-500.0,0.00013895,3]
[330638387,1719679844489,-500.0,0.00013895,3]
[330638388,1719679844499,-801.63,0.00013895,3]
[330638389,1719679844508,-500.0,0.00013895,3]
[330638390,1719679844525,-1474.61,0.00013895,3]
[330638391,1719679844535,-500.0,0.00013895,3]
[330638392,1719679844544,-500.0,0.00013895,3]
[330638393,1719679844554,-500.0,0.00013895,3]
[330638394,1719679844564,-500.0,0.00013895,3]
[330638395,1719679844574,-500.0,0.00013895,3]
[330638396,1719679844584,-1500.97,0.00013895,3]
[330638397,1719679844593,-2606.89,0.00013895,3]
[330638398,1719679844603,-873.73,0.00013895,3]
[330638399,1719679844613,-500.0,0.00013895,3]
[330638400,1719679844622,-2974.54,0.00013895,3]
[330638401,1719679844632,-851.56,0.00013895,3]
[330638402,1719679844642,-500.0,0.00013895,3]
[330638403,1719679844652,-1447.68,0.00013895,3]
[330638404,1719679844663,-500.0,0.00013895,3]
[330638405,1719679844673,-1043.24,0.00013895,3]
[330638406,1719679844683,-758.66,0.00013895,3]
[330638407,1719679844693,-1775.11,0.00013895,3]
[330638408,1719679844704,-500.0,0.00013895,3]
[330638409,1719679844713,-888.19,0.00013895,3]
[330638410,1719679844723,-500.0,0.00013895,3]
[330638411,1719679844736,-500.0,0.00013895,3]
[330638412,1719679844749,-1871.89,0.00013895,3]
[330638413,1719679844763,-299.81066904,0.00013895,3]
[330638414,1719679844773,-500.0,0.00013895,3]
[330638415,1719679844785,-1653.47,0.00013895,3]
[330638416,1719679844795,-500.0,0.00013895,3]
[330638417,1719679844805,-642.34,0.00013895,3]
[330638418,1719679844814,-500.0,0.00013895,3]
[330638419,1719679844823,-500.0,0.00013895,3]
[330638420,1719679844833,-844.71,0.00013895,3]
[330638421,1719679844842,-500.0,0.00013895,3]
[330638422,1719679844857,-500.0,0.00013895,3]
[330638423,1719679844875,-3512.43,0.00013895,3]
[330638424,1719679844885,-572.7,0.00013895,3]
[330638425,1719679844896,-500.0,0.00013895,3]
[330638426,1719679844905,-500.0,0.00013895,3]
[330638427,1719679844914,-1011.28,0.00013895,3]
[330638428,1719679844924,-500.0,0.00013895,3]
[330638429,1719679844934,-1786.97,0.00013895,3]
[330638430,1719679844943,-537.21,0.00013895,3]
[330638431,1719679844954,-990.97,0.00013895,3]
[330638432,1719679844964,-500.0,0.00013895,3]
[330638433,1719679844973,-500.0,0.00013895,3]
[330638434,1719679844983,-840.15,0.00013895,3]
[330638435,1719679844993,-500.0,0.00013895,3]
[330638436,1719679845003,-562.37,0.00013895,3]
[330638437,1719679845013,-1503.69,0.00013895,3]
[330638438,1719679845022,-584.63,0.00013895,3]
[330638439,1719679845032,-500.0,0.00013895,3]
[330638440,1719679845042,-500.0,0.00013895,3]
[330638441,1719679845052,-1912.0,0.00013895,3]
[330638442,1719679845062,-500.0,0.00013895,2]
[330638443,1719679845072,-916.28,0.00013895,3]
[330638444,1719679845082,-572.80169895,0.00013895,3]
[330638445,1719679845092,-1526.05,0.00013895,3]
[330638446,1719679845102,-1352.49,0.00013895,3]
[330638447,1719679845112,-1151.55,0.00013895,3]
[330638448,1719679845122,-646.44,0.00013895,3]
[330638449,1719679845132,-2495.91,0.00013895,3]
[330638450,1719679845142,-736.99,0.00013895,3]
[330638451,1719679845152,-500.0,0.00013895,3]
[330638452,1719679845162,-2675.12,0.00013895,3]
[330638453,1719679845171,-196.24886245,0.00013895,3]
[330638454,1719679845181,-699.24,0.00013895,3]
[330638455,1719679845191,-589.39072104,0.00013895,3]
[330638456,1719679845203,-500.66177449,0.00013895,3]
[330638457,1719679845214,-500.0,0.00013895,3]
[330638458,1719679845224,-500.0,0.00013895,3]
[330638459,1719679845234,-500.0,0.00013895,3]
[330638460,1719679845248,-1302.9,0.00013895,3]
[330638461,1719679845258,-500.0,0.00013895,3]
[330638462,1719679845268,-1100.45,0.00013895,3]
[330638463,1719679845278,-641.89,0.00013895,3]
[330638464,1719679845288,-628.25,0.00013895,3]
[330638465,1719679845297,-500.0,0.00013895,3]
[330638466,1719679845308,-1366.01,0.00013895,3]
[330638467,1719679845318,-5136.36,0.00013895,3]
[330638468,1719679845328,-3432.11,0.00013895,3]
[330638469,1719679845338,-1650.11,0.00013895,3]
[330638470,1719679845349,-500.0,0.00013895,3]
[330638471,1719679845359,-500.0,0.00013895,3]
[330638472,1719679845370,-1000.0,0.00013895,3]
[330638473,1719679845380,-565.83,0.00013895,3]
[330638474,1719679845389,-2759.84,0.00013895,3]
[330638475,1719679845404,-500.0,0.00013895,3]
[330638476,1719679845414,-688.98,0.00013895,3]
[330638477,1719679845424,-419.13810928,0.00013895,3]
[330638478,1719679845434,-2003.0,0.00013895,3]
[330638479,1719679845444,-1059.39,0.00013895,3]
[330638480,1719679845458,-500.0,0.00013895,3]
[330638481,1719679845470,-562.55,0.00013895,3]
[330638482,1719679845480,-827.64,0.00013895,3]
[330638483,1719679845490,-1442.81,0.00013895,3]
[330638484,1719679845500,-500.0,0.00013895,3]
[330638485,1719679845511,-1177.93,0.00013895,3]
[330638486,1719679845520,-500.0,0.00013895,3]
[330638487,1719679845530,-525.0,0.00013895,3]
[330638488,1719679845540,-1170.67,0.00013895,3]
[330638489,1719679845550,-500.0,0.00013895,3]
[330638490,1719679845560,-3013.3,0.00013895,3]
[330638491,1719679845570,-500.0,0.00013895,3]
[330638492,1719679845580,-500.0,0.00013895,3]
[330638493,1719679845590,-500.0,0.00013895,3]
[330638494,1719679845600,-2374.47,0.00013895,3]
[330638495,1719679845610,-1491.47,0.00013895,3]
[330638496,1719679845620,-500.0,0.00013895,3]
[330638497,1719679845630,-500.0,0.00013895,3]
[330638498,1719679845639,-171.63155177,0.00013895,3]
[330638499,1719679845648,-302.662156,0.00013895,2]
[330638500,1719679845659,-1939.84,0.00013895,3]
[330638501,1719679845669,-500.0,0.00013895,3]
[330638502,1719679845680,-523.12,0.00013895,3]
[330638503,1719679845689,-500.0,0.00013895,3]
[330638504,1719679845699,-500.0,0.00013895,3]
[330638505,1719679845709,-302.662156,0.00013895,2]
[330638506,1719679845718,-500.0,0.00013895,3]
[330638507,1719679845729,-1981.14,0.00013895,3]
[330638508,1719679845740,-500.0,0.00013895,3]
[330638509,1719679845750,-151.0,0.00013895,2]
[330638510,1719679845759,-761.46,0.00013895,3]
[330638511,1719679845769,-727.93,0.00013895,3]
[330638512,1719679845779,-500.0,0.00013895,3]
[330638513,1719679845788,-2560.2,0.00013895,3]
[330638514,1719679845798,-515.24,0.00013895,3]
[330638515,1719679845808,-500.0,0.00013895,3]
[330638516,1719679845817,-272.611552,0.00013895,2]
[330638517,1719679845827,-2923.93,0.00013895,3]
[330638518,1719679845837,-151.0,0.00013895,2]
[330638519,1719679845846,-151.0,0.00013895,2]
[330638520,1719679845860,-473.1037019,0.00013895,3]
[330638521,1719679845870,-865.69,0.00013895,3]
[330638522,1719679845880,-500.0,0.00013895,3]
[330638523,1719679845890,-151.0,0.00013895,2]
[330638524,1719679845903,-500.0,0.00013895,3]
[330638525,1719679845912,-500.0,0.00013895,3]
[330638526,1719679845923,-1797.39,0.00013895,3]
[330638527,1719679845933,-646.75215711,0.00013895,3]
[330638528,1719679845943,-543.95391748,0.00013895,3]
[330638529,1719679845955,-534.39,0.00013895,3]
[330638530,1719679845965,-500.0,0.00013895,3]
[330638531,1719679845975,-803.32,0.00013895,3]
[330638532,1719679845985,-500.0,0.00013895,3]
[330638533,1719679845995,-1277.99,0.00013895,3]
[330638534,1719679846004,-638.77,0.00013895,3]
[330638535,1719679846014,-151.0,0.00013895,2]
[330638536,1719679846023,-948.59,0.00013895,3]
[330638537,1719679846033,-2366.63,0.00013895,3]
[330638538,1719679846043,-1476.62,0.00013895,3]
[330638539,1719679846052,-1231.73,0.00013895,3]
[330638540,1719679846062,-151.0,0.00013895,2]
[330638541,1719679846072,-500.0,0.00013895,3]
[330638542,1719679846082,-500.0,0.00013895,3]
[330638543,1719679846092,-500.0,0.00013895,3]
[330638544,1719679846102,-151.0,0.00013895,2]
[330638545,1719679846111,-599.3,0.00013895,3]
[330638546,1719679846121,-500.0,0.00013895,3]
[330638547,1719679846131,-1063.19,0.00013895,3]
[330638548,1719679846141,-796.3,0.00013895,3]
[330638549,1719679846151,-500.0,0.00013895,3]
[330638550,1719679846161,-3329.59,0.00013895,3]
[330638551,1719679846170,-500.0,0.00013895,3]
[330638552,1719679846180,-500.0,0.00013895,3]
[330638553,1719679846190,-645.58391175,0.00013895,3]
[330638554,1719679846202,-500.0,0.00013895,3]
[330638555,1719679846212,-500.0,0.00013895,3]
[330638556,1719679846222,-2143.6,0.00013895,3]
[330638557,1719679846232,-3882.89,0.00013895,3]
[330638558,1719679846242,-708.56,0.00013895,3]
[330638559,1719679846252,-500.0,0.00013895,3]
[330638560,1719679846262,-500.0,0.00013895,3]
[330638561,1719679846271,-500.0,0.00013895,3]
[330638562,1719679846280,-617.29,0.00013895,3]
[330638563,1719679846290,-1807.46,0.00013895,3]
[330638564,1719679846300,-500.0,0.00013895,3]
[330638565,1719679846309,-1693.68,0.00013895,3]
[330638566,1719679846319,-841.22,0.00013895,3]